[Event "Early-Titled-Tuesday-Blitz-April-16-2024"]
[Site "Chess.com"]
[Date "2024.04.16"]
[Round "8"]
[White "ATM622"]
[Black "HanSchut"]
[Result "1/2-1/2"]
[WhiteElo "2433"]
[BlackElo "2305"]
[TimeControl "180+1"]
[EndTime "9:31:22 PDT"]
[Termination "Game drawn by repetition"]

1. d4 {[%clk 0:03:00.9]} 1... Nf6 {[%clk 0:02:58.3]} 2. c4 {[%clk 0:02:59.3]}
2... g6 {[%clk 0:02:58.3]} 3. g3 {[%clk 0:02:59.3]} 3... Bg7 {[%clk 0:02:57.3]}
4. Bg2 {[%clk 0:02:59.4]} 4... d5 {[%clk 0:02:57.9]} 5. Nf3 {[%clk 0:02:59.3]}
5... O-O {[%clk 0:02:55.9]} 6. O-O {[%clk 0:02:59.3]} 6... dxc4 {[%clk
0:02:56.8]} 7. Qc2 {[%clk 0:02:55.6]} 7... Nc6 {[%clk 0:02:52.7]} 8. Qxc4 {[%clk
0:02:51.9]} 8... Be6 {[%clk 0:02:51.8]} 9. Qc2 {[%clk 0:02:49.1]} 9... Nd5
{[%clk 0:02:50.8]} 10. Rd1 {[%clk 0:02:45.2]} 10... Nb6 {[%clk 0:02:35.5]} 11.
e3 {[%clk 0:02:40.9]} 11... Bf5 {[%clk 0:02:26.5]} 12. Qe2 {[%clk 0:02:37.6]}
12... Qc8 {[%clk 0:02:11.1]} 13. Nc3 {[%clk 0:02:34.8]} 13... Bh3 {[%clk
0:02:09.7]} 14. b3 {[%clk 0:02:30]} 14... e5 {[%clk 0:02:06.4]} 15. Ba3 {[%clk
0:02:28.6]} 15... Re8 {[%clk 0:01:56.4]} 16. d5 {[%clk 0:02:27.7]} 16... Nd4
{[%clk 0:01:51.1]} 17. exd4 {[%clk 0:02:17]} 17... exd4 {[%clk 0:01:50]} 18. Ne4
{[%clk 0:02:15.6]} 18... f5 {[%clk 0:01:50.1]} 19. Nfg5 {[%clk 0:02:10.1]} 19...
Bxg2 {[%clk 0:01:49.6]} 20. Kxg2 {[%clk 0:01:54.6]} 20... fxe4 {[%clk
0:01:49.5]} 21. Nxe4 {[%clk 0:01:35.3]} 21... Qf5 {[%clk 0:01:44.6]} 22. f3
{[%clk 0:01:34.2]} 22... Nxd5 {[%clk 0:01:40.9]} 23. Kh1 {[%clk 0:01:08.9]}
23... Kh8 {[%clk 0:01:26.2]} 24. Bb2 {[%clk 0:01:03.3]} 24... Rf8 {[%clk
0:01:05.3]} 25. Rd3 {[%clk 0:00:57.8]} 25... Rae8 {[%clk 0:01:04.3]} 26. Re1
{[%clk 0:00:44.8]} 26... Nb4 {[%clk 0:00:57.1]} 27. Rxd4 {[%clk 0:00:43.9]}
27... Qxf3+ {[%clk 0:00:49]} 28. Qxf3 {[%clk 0:00:43.8]} 28... Rxf3 {[%clk
0:00:49.9]} 29. Rxb4 {[%clk 0:00:42.7]} 29... Bxb2 {[%clk 0:00:49.6]} 30. Rxb7
{[%clk 0:00:40.5]} 30... Rf7 {[%clk 0:00:34.8]} 31. Re2 {[%clk 0:00:36.3]} 31...
Bd4 {[%clk 0:00:30.8]} 32. Kg2 {[%clk 0:00:35.5]} 32... Bb6 {[%clk 0:00:29.1]}
33. a4 {[%clk 0:00:32]} 33... a5 {[%clk 0:00:28.7]} 34. h4 {[%clk 0:00:28.2]}
34... Kg7 {[%clk 0:00:26.4]} 35. b4 {[%clk 0:00:11.9]} 35... axb4 {[%clk
0:00:25.9]} 36. a5 {[%clk 0:00:12.2]} 36... Bxa5 {[%clk 0:00:26.5]} 37. Rb5
{[%clk 0:00:12.2]} 37... Bb6 {[%clk 0:00:21.5]} 38. Rxb4 {[%clk 0:00:12.2]}
38... Rfe7 {[%clk 0:00:21.8]} 39. Rc4 {[%clk 0:00:11.6]} 39... h6 {[%clk
0:00:20.6]} 40. Kf3 {[%clk 0:00:11.7]} 40... Rf8+ {[%clk 0:00:19.7]} 41. Kg2
{[%clk 0:00:11.1]} 41... Rfe8 {[%clk 0:00:19.4]} 42. Kf3 {[%clk 0:00:11]} 42...
Rf8+ {[%clk 0:00:19.5]} 43. Kg2 {[%clk 0:00:11.1]} 43... Rfe8 {[%clk 0:00:20]}
1/2-1/2

[Event "Early-Titled-Tuesday-Blitz-April-16-2024"]
[Site "Chess.com"]
[Date "2024.04.16"]
[Round "8"]
[White "MomchilPetkov"]
[Black "MarcoRiehle"]
[Result "1-0"]
[WhiteElo "2932"]
[BlackElo "2735"]
[TimeControl "180+1"]
[EndTime "9:31:23 PDT"]
[Termination "MomchilPetkov won by checkmate"]

1. d4 {[%clk 0:03:00.9]} 1... d5 {[%clk 0:01:41.5]} 2. Nf3 {[%clk 0:02:59]} 2...
e6 {[%clk 0:01:39.4]} 3. c4 {[%clk 0:02:59.4]} 3... Nf6 {[%clk 0:01:38.9]} 4.
Nc3 {[%clk 0:02:59.8]} 4... c5 {[%clk 0:01:39.2]} 5. e3 {[%clk 0:02:59.6]} 5...
cxd4 {[%clk 0:01:39]} 6. exd4 {[%clk 0:02:59.6]} 6... Nc6 {[%clk 0:01:39.7]} 7.
a3 {[%clk 0:02:58.8]} 7... Be7 {[%clk 0:01:39.4]} 8. c5 {[%clk 0:02:59.2]} 8...
Ne4 {[%clk 0:01:39.3]} 9. Bb5 {[%clk 0:02:59.2]} 9... O-O {[%clk 0:01:38.4]} 10.
O-O {[%clk 0:02:56.8]} 10... Qc7 {[%clk 0:01:36.9]} 11. Re1 {[%clk 0:02:47.6]}
11... f5 {[%clk 0:01:35.6]} 12. Bxc6 {[%clk 0:02:47.9]} 12... bxc6 {[%clk
0:01:35]} 13. Ne5 {[%clk 0:02:48.1]} 13... Bf6 {[%clk 0:01:35.2]} 14. Nxe4
{[%clk 0:01:47.4]} 14... Bxe5 {[%clk 0:01:26.1]} 15. Ng3 {[%clk 0:01:38.5]}
15... Bf6 {[%clk 0:01:26.2]} 16. Nh5 {[%clk 0:01:25]} 16... Be7 {[%clk
0:01:10.9]} 17. Bf4 {[%clk 0:01:24.5]} 17... Qb7 {[%clk 0:01:09.7]} 18. Be5
{[%clk 0:01:24.7]} 18... g6 {[%clk 0:01:07.9]} 19. Nf4 {[%clk 0:01:24.3]} 19...
Qxb2 {[%clk 0:01:02.6]} 20. Rb1 {[%clk 0:01:21.5]} 20... Qxa3 {[%clk 0:01:01.3]}
21. Re3 {[%clk 0:01:21.9]} 21... Qa6 {[%clk 0:00:49.2]} 22. Rg3 {[%clk
0:01:18.1]} 22... Kf7 {[%clk 0:00:39.2]} 23. Rgb3 {[%clk 0:01:16.3]} 23... Bf6
{[%clk 0:00:34.5]} 24. Ra1 {[%clk 0:00:59.1]} 24... Qc4 {[%clk 0:00:28.7]} 25.
Nd3 {[%clk 0:00:59.3]} 25... a5 {[%clk 0:00:19.4]} 26. Bxf6 {[%clk 0:00:49.1]}
26... Kxf6 {[%clk 0:00:20.3]} 27. Ne5 {[%clk 0:00:48.1]} 27... Qa6 {[%clk
0:00:20.4]} 28. Rb6 {[%clk 0:00:48.5]} 28... Qa7 {[%clk 0:00:19.4]} 29. Nxc6
{[%clk 0:00:42.4]} 29... Qc7 {[%clk 0:00:19.9]} 30. Rxa5 {[%clk 0:00:32]} 30...
Bd7 {[%clk 0:00:19.7]} 31. Rxa8 {[%clk 0:00:28.7]} 31... Rxa8 {[%clk 0:00:20.6]}
32. Ne5 {[%clk 0:00:28]} 32... Be8 {[%clk 0:00:19.9]} 33. h4 {[%clk 0:00:28]}
33... Qa7 {[%clk 0:00:17.2]} 34. Qd2 {[%clk 0:00:27]} 34... Qa1+ {[%clk
0:00:14]} 35. Kh2 {[%clk 0:00:27]} 35... Ra7 {[%clk 0:00:11.4]} 36. Rb8 {[%clk
0:00:25.8]} 36... Bf7 {[%clk 0:00:10.8]} 37. Qg5+ {[%clk 0:00:18.2]} 37... Kg7
{[%clk 0:00:11.2]} 38. h5 {[%clk 0:00:13.3]} 38... Qxd4 {[%clk 0:00:10]} 39. h6#
{[%clk 0:00:13.3]} 1-0

[Event "Early-Titled-Tuesday-Blitz-April-16-2024"]
[Site "Chess.com"]
[Date "2024.04.16"]
[Round "8"]
[White "FARIZA2018"]
[Black "Alen_Yeremyann"]
[Result "0-1"]
[WhiteElo "2562"]
[BlackElo "2835"]
[TimeControl "180+1"]
[EndTime "9:31:25 PDT"]
[Termination "Alen_Yeremyann won on time"]

1. e4 {[%clk 0:03:00.9]} 1... c5 {[%clk 0:02:57.8]} 2. Nf3 {[%clk 0:03:01.1]}
2... Nc6 {[%clk 0:02:58.4]} 3. d4 {[%clk 0:03:01.6]} 3... cxd4 {[%clk
0:02:58.4]} 4. Nxd4 {[%clk 0:03:02.3]} 4... Nf6 {[%clk 0:02:59.1]} 5. Nc3 {[%clk
0:03:02.4]} 5... e5 {[%clk 0:02:59.8]} 6. Ndb5 {[%clk 0:03:02.7]} 6... d6 {[%clk
0:03:00]} 7. Bg5 {[%clk 0:03:02.9]} 7... a6 {[%clk 0:03:00.5]} 8. Na3 {[%clk
0:03:03.4]} 8... b5 {[%clk 0:03:01.3]} 9. Nd5 {[%clk 0:03:03.9]} 9... Be7 {[%clk
0:03:02]} 10. Bxf6 {[%clk 0:03:04.4]} 10... Bxf6 {[%clk 0:03:02.9]} 11. c4
{[%clk 0:03:04.9]} 11... b4 {[%clk 0:03:03.2]} 12. Nc2 {[%clk 0:03:05.2]} 12...
a5 {[%clk 0:03:04]} 13. g3 {[%clk 0:03:05.4]} 13... Bg5 {[%clk 0:03:04.2]} 14.
Bg2 {[%clk 0:03:05.1]} 14... O-O {[%clk 0:03:04.5]} 15. O-O {[%clk 0:03:04.9]}
15... Be6 {[%clk 0:03:05.1]} 16. b3 {[%clk 0:03:03.2]} 16... Rb8 {[%clk
0:02:56.5]} 17. Qd3 {[%clk 0:03:01.6]} 17... Bxd5 {[%clk 0:02:46.4]} 18. Qxd5
{[%clk 0:03:00.5]} 18... Qb6 {[%clk 0:02:34.9]} 19. Rad1 {[%clk 0:02:54.9]}
19... Rbd8 {[%clk 0:02:31.9]} 20. Kh1 {[%clk 0:02:49.4]} 20... g6 {[%clk
0:01:52.2]} 21. f4 {[%clk 0:02:40.8]} 21... Bf6 {[%clk 0:01:52]} 22. Qd3 {[%clk
0:02:35.1]} 22... Nd4 {[%clk 0:01:35.4]} 23. Ne3 {[%clk 0:02:34.7]} 23... Bg7
{[%clk 0:01:32.9]} 24. Nd5 {[%clk 0:02:34.8]} 24... Qb7 {[%clk 0:01:33.1]} 25.
f5 {[%clk 0:02:34.9]} 25... f6 {[%clk 0:01:33.7]} 26. Bh3 {[%clk 0:02:32.4]}
26... g5 {[%clk 0:01:33.7]} 27. Bg4 {[%clk 0:02:31.9]} 27... a4 {[%clk 0:01:31]}
28. bxa4 {[%clk 0:01:37.7]} 28... Ra8 {[%clk 0:01:30.2]} 29. Rd2 {[%clk
0:01:19.5]} 29... Rxa4 {[%clk 0:01:28.1]} 30. Rb1 {[%clk 0:01:15.6]} 30... Rfa8
{[%clk 0:01:28.7]} 31. Rbb2 {[%clk 0:01:11.7]} 31... Ra3 {[%clk 0:01:10.9]} 32.
Qf1 {[%clk 0:01:09.1]} 32... b3 {[%clk 0:01:01]} 33. axb3 {[%clk 0:01:05.4]}
33... Rxb3 {[%clk 0:01:01.7]} 34. Rxb3 {[%clk 0:00:58.7]} 34... Qxb3 {[%clk
0:01:02.3]} 35. Qd3 {[%clk 0:00:48.5]} 35... Ra1+ {[%clk 0:00:58.2]} 36. Kg2
{[%clk 0:00:48.6]} 36... Ra2 {[%clk 0:00:58.8]} 37. Nc3 {[%clk 0:00:36.1]} 37...
Ra3 {[%clk 0:00:52]} 38. Qb1 {[%clk 0:00:11.4]} 38... Qxc3 {[%clk 0:00:50.1]}
39. Qb8+ {[%clk 0:00:11.4]} 39... Bf8 {[%clk 0:00:50.6]} 40. Rb2 {[%clk
0:00:07.2]} 40... Qe1 {[%clk 0:00:37.9]} 41. Qb7 {[%clk 0:00:02.9]} 41... Ra1
{[%clk 0:00:33.3]} 42. Qd5+ {[%clk 0:00:03]} 42... Kh8 {[%clk 0:00:33.8]} 0-1

[Event "Early-Titled-Tuesday-Blitz-April-16-2024"]
[Site "Chess.com"]
[Date "2024.04.16"]
[Round "8"]
[White "PolandHussars"]
[Black "Nimrod_Veinberg"]
[Result "0-1"]
[WhiteElo "2594"]
[BlackElo "2714"]
[TimeControl "180+1"]
[EndTime "9:31:25 PDT"]
[Termination "Nimrod_Veinberg won by resignation"]

1. e4 {[%clk 0:03:00.9]} 1... c5 {[%clk 0:02:46.2]} 2. Ne2 {[%clk 0:03:00.7]}
2... e6 {[%clk 0:02:44.8]} 3. g3 {[%clk 0:03:01.3]} 3... d5 {[%clk 0:02:40.5]}
4. Bg2 {[%clk 0:03:01.8]} 4... dxe4 {[%clk 0:02:39.9]} 5. Bxe4 {[%clk
0:03:02.7]} 5... Nf6 {[%clk 0:02:39.3]} 6. Bg2 {[%clk 0:03:03]} 6... Nc6 {[%clk
0:02:36.1]} 7. O-O {[%clk 0:03:03.1]} 7... Be7 {[%clk 0:02:32.4]} 8. Nbc3 {[%clk
0:03:03.3]} 8... O-O {[%clk 0:02:30.4]} 9. d3 {[%clk 0:03:03.9]} 9... h6 {[%clk
0:02:30.2]} 10. h3 {[%clk 0:03:03.9]} 10... e5 {[%clk 0:02:30]} 11. Be3 {[%clk
0:03:03.1]} 11... Be6 {[%clk 0:02:22.5]} 12. f4 {[%clk 0:03:02.3]} 12... Nd5
{[%clk 0:02:12.4]} 13. Nxd5 {[%clk 0:03:01.5]} 13... Bxd5 {[%clk 0:02:13.3]} 14.
Nc3 {[%clk 0:03:00.7]} 14... Bxg2 {[%clk 0:02:12.9]} 15. Kxg2 {[%clk 0:03:01.6]}
15... exf4 {[%clk 0:02:12.7]} 16. Bxf4 {[%clk 0:03:01.4]} 16... Bf6 {[%clk
0:02:10.3]} 17. Ne4 {[%clk 0:02:47.8]} 17... b6 {[%clk 0:01:52.7]} 18. Bd6
{[%clk 0:02:36.6]} 18... Be7 {[%clk 0:01:52.1]} 19. Bxe7 {[%clk 0:02:33.2]}
19... Qxe7 {[%clk 0:01:51.1]} 20. Qd2 {[%clk 0:02:26.5]} 20... Rad8 {[%clk
0:01:47.6]} 21. Rae1 {[%clk 0:02:25.1]} 21... f5 {[%clk 0:01:30.4]} 22. Nc3
{[%clk 0:02:19]} 22... Qd6 {[%clk 0:01:24.2]} 23. Qf4 {[%clk 0:02:15.3]} 23...
Qxf4 {[%clk 0:01:22.2]} 24. Rxf4 {[%clk 0:02:16.2]} 24... Nd4 {[%clk 0:01:21.6]}
25. Rf2 {[%clk 0:02:15.9]} 25... Rfe8 {[%clk 0:01:22.2]} 26. Rxe8+ {[%clk
0:02:13.2]} 26... Rxe8 {[%clk 0:01:23.1]} 27. Nd5 {[%clk 0:02:11.3]} 27... Re5
{[%clk 0:01:18.8]} 28. Nc3 {[%clk 0:02:02]} 28... g6 {[%clk 0:01:16.5]} 29. a4
{[%clk 0:02:01.5]} 29... Kg7 {[%clk 0:01:14.5]} 30. Nb5 {[%clk 0:02:00.6]} 30...
Nxb5 {[%clk 0:01:14.3]} 31. axb5 {[%clk 0:02:01.5]} 31... Re1 {[%clk 0:01:10.7]}
32. Kf3 {[%clk 0:01:55.1]} 32... Kf6 {[%clk 0:01:06.2]} 33. Rd2 {[%clk
0:01:46.7]} 33... Ke5 {[%clk 0:00:53.8]} 34. c3 {[%clk 0:01:46.2]} 34... Kd5
{[%clk 0:00:53.9]} 35. g4 {[%clk 0:01:36.1]} 35... Rf1+ {[%clk 0:00:33.1]} 36.
Kg2 {[%clk 0:01:31.8]} 36... Rf4 {[%clk 0:00:32.7]} 37. Kg3 {[%clk 0:01:30.7]}
37... g5 {[%clk 0:00:32.7]} 38. gxf5 {[%clk 0:01:31.1]} 38... Rxf5 {[%clk
0:00:33.3]} 39. Re2 {[%clk 0:01:23.7]} 39... c4 {[%clk 0:00:32.6]} 40. dxc4+
{[%clk 0:01:19.8]} 40... Kxc4 {[%clk 0:00:33.5]} 41. Re7 {[%clk 0:01:11]} 41...
Rxb5 {[%clk 0:00:30.4]} 42. Rc7+ {[%clk 0:01:10.1]} 42... Kd3 {[%clk 0:00:29.1]}
43. b4 {[%clk 0:01:09.6]} 43... a5 {[%clk 0:00:28]} 44. bxa5 {[%clk 0:01:10.1]}
44... bxa5 {[%clk 0:00:28.4]} 45. Kg4 {[%clk 0:01:10.8]} 45... Kc2 {[%clk
0:00:23.4]} 46. Kh5 {[%clk 0:01:11.1]} 46... a4 {[%clk 0:00:23.6]} 47. Ra7
{[%clk 0:01:10]} 47... Kb3 {[%clk 0:00:23.2]} 48. Kxh6 {[%clk 0:01:10.5]} 48...
a3 {[%clk 0:00:21.7]} 49. c4 {[%clk 0:01:10.4]} 49... Rc5 {[%clk 0:00:22]} 50.
Rg7 {[%clk 0:01:06.3]} 50... a2 {[%clk 0:00:21.5]} 51. Rxg5 {[%clk 0:01:06.8]}
51... Rxg5 {[%clk 0:00:20.4]} 52. Kxg5 {[%clk 0:01:07.7]} 52... a1=Q {[%clk
0:00:20.7]} 53. h4 {[%clk 0:01:06.8]} 53... Qh8 {[%clk 0:00:20.4]} 54. h5 {[%clk
0:01:06.8]} 54... Kxc4 {[%clk 0:00:19]} 55. Kg6 {[%clk 0:01:07.7]} 55... Kd5
{[%clk 0:00:18.6]} 56. h6 {[%clk 0:01:08.6]} 56... Ke6 {[%clk 0:00:18.8]} 57. h7
{[%clk 0:01:09.5]} 57... Qf6+ {[%clk 0:00:18.5]} 58. Kh5 {[%clk 0:01:09.7]}
58... Qg7 {[%clk 0:00:18.7]} 59. h8=Q {[%clk 0:01:10.2]} 59... Qxh8+ {[%clk
0:00:18.7]} 60. Kg6 {[%clk 0:01:10.9]} 60... Qg8+ {[%clk 0:00:18.6]} 61. Kh6
{[%clk 0:01:11.3]} 61... Kf5 {[%clk 0:00:18]} 0-1

[Event "Early-Titled-Tuesday-Blitz-April-16-2024"]
[Site "Chess.com"]
[Date "2024.04.16"]
[Round "8"]
[White "Gryffindorac8"]
[Black "vladgoncharov"]
[Result "0-1"]
[WhiteElo "2448"]
[BlackElo "2615"]
[TimeControl "180+1"]
[EndTime "9:31:25 PDT"]
[Termination "vladgoncharov won by resignation"]

1. d4 {[%clk 0:03:00.9]} 1... Nf6 {[%clk 0:02:56.4]} 2. c4 {[%clk 0:02:59.2]}
2... e6 {[%clk 0:02:56.4]} 3. Nf3 {[%clk 0:02:58]} 3... Bb4+ {[%clk 0:02:55.6]}
4. Bd2 {[%clk 0:02:57.1]} 4... a5 {[%clk 0:02:55.2]} 5. g3 {[%clk 0:02:56.7]}
5... b6 {[%clk 0:02:54.9]} 6. Bg2 {[%clk 0:02:56.2]} 6... Bb7 {[%clk 0:02:54.9]}
7. O-O {[%clk 0:02:55.6]} 7... O-O {[%clk 0:02:47.2]} 8. Bg5 {[%clk 0:02:55.3]}
8... Be7 {[%clk 0:02:46.7]} 9. Nc3 {[%clk 0:02:53.1]} 9... d6 {[%clk 0:02:46.1]}
10. Bxf6 {[%clk 0:02:52.2]} 10... Bxf6 {[%clk 0:02:45.8]} 11. e4 {[%clk
0:02:52.2]} 11... Nd7 {[%clk 0:02:39.5]} 12. Re1 {[%clk 0:02:51.2]} 12... e5
{[%clk 0:02:39.1]} 13. Qd2 {[%clk 0:02:50]} 13... Re8 {[%clk 0:02:27.8]} 14.
Rad1 {[%clk 0:02:49.3]} 14... a4 {[%clk 0:02:19.3]} 15. h4 {[%clk 0:02:34.9]}
15... h6 {[%clk 0:02:12.4]} 16. Kh2 {[%clk 0:02:12.8]} 16... Ra5 {[%clk
0:02:07.9]} 17. Qc2 {[%clk 0:01:59.7]} 17... Qa8 {[%clk 0:01:49.9]} 18. b4
{[%clk 0:01:39.1]} 18... axb3 {[%clk 0:01:49.1]} 19. axb3 {[%clk 0:01:40]} 19...
exd4 {[%clk 0:01:21.3]} 20. Nxd4 {[%clk 0:01:40.9]} 20... Bxd4 {[%clk
0:01:14.2]} 21. Rxd4 {[%clk 0:01:39]} 21... Nf6 {[%clk 0:01:11.3]} 22. Rdd1
{[%clk 0:00:55.9]} 22... Bc6 {[%clk 0:01:09.4]} 23. b4 {[%clk 0:00:40.8]} 23...
Ra3 {[%clk 0:01:05.7]} 24. Qb2 {[%clk 0:00:24.3]} 24... Ra7 {[%clk 0:00:51.6]}
25. Ra1 {[%clk 0:00:20.3]} 25... Ng4+ {[%clk 0:00:40.8]} 26. Kg1 {[%clk
0:00:17.9]} 26... Ne5 {[%clk 0:00:40.9]} 27. Rxa7 {[%clk 0:00:17]} 27... Qxa7
{[%clk 0:00:41]} 28. Ra1 {[%clk 0:00:16.6]} 28... Qb8 {[%clk 0:00:40.7]} 29. Qb3
{[%clk 0:00:15.3]} 29... Qd8 {[%clk 0:00:26.6]} 30. Ra7 {[%clk 0:00:14.6]} 30...
Qb8 {[%clk 0:00:24.4]} 31. Ra1 {[%clk 0:00:14.1]} 31... Bd7 {[%clk 0:00:19.7]}
32. Nd5 {[%clk 0:00:12.4]} 32... Be6 {[%clk 0:00:19.7]} 33. Qc3 {[%clk
0:00:10.6]} 33... c6 {[%clk 0:00:18.6]} 34. Ne3 {[%clk 0:00:10.7]} 34... b5
{[%clk 0:00:18.3]} 35. c5 {[%clk 0:00:10.1]} 35... dxc5 {[%clk 0:00:16.8]} 36.
Qxe5 {[%clk 0:00:09.6]} 36... Qxe5 {[%clk 0:00:15.8]} 0-1

[Event "Early-Titled-Tuesday-Blitz-April-16-2024"]
[Site "Chess.com"]
[Date "2024.04.16"]
[Round "8"]
[White "VacheH009"]
[Black "cthulhuuu"]
[Result "1-0"]
[WhiteElo "2620"]
[BlackElo "2422"]
[TimeControl "180+1"]
[EndTime "9:31:26 PDT"]
[Termination "VacheH009 won on time"]

1. c4 {[%clk 0:03:00.9]} 1... Nf6 {[%clk 0:03:00.2]} 2. d4 {[%clk 0:02:59.4]}
2... e5 {[%clk 0:03:00.4]} 3. dxe5 {[%clk 0:02:59]} 3... Ng4 {[%clk 0:03:00.9]}
4. Nf3 {[%clk 0:02:59.6]} 4... Bc5 {[%clk 0:03:00.8]} 5. e3 {[%clk 0:02:59.9]}
5... Nc6 {[%clk 0:03:01.1]} 6. Be2 {[%clk 0:02:59.9]} 6... O-O {[%clk
0:03:01.5]} 7. O-O {[%clk 0:03:00.3]} 7... Re8 {[%clk 0:03:01.8]} 8. b3 {[%clk
0:03:00.3]} 8... a5 {[%clk 0:03:02.2]} 9. Nc3 {[%clk 0:02:58.3]} 9... Ncxe5
{[%clk 0:03:02.6]} 10. Bb2 {[%clk 0:02:56.4]} 10... Ra6 {[%clk 0:03:02.3]} 11.
Nxe5 {[%clk 0:02:50.1]} 11... Nxe5 {[%clk 0:03:03.2]} 12. Ne4 {[%clk 0:02:50.6]}
12... Ba7 {[%clk 0:03:02.8]} 13. Qd5 {[%clk 0:02:37.8]} 13... Rae6 {[%clk
0:02:48.8]} 14. Qxa5 {[%clk 0:02:04.4]} 14... Bb6 {[%clk 0:02:27.2]} 15. Qc3
{[%clk 0:02:02.5]} 15... Qh4 {[%clk 0:02:17.5]} 16. f4 {[%clk 0:01:42]} 16...
Rh6 {[%clk 0:01:47.9]} 17. h3 {[%clk 0:01:36.2]} 17... Rg6 {[%clk 0:01:47.7]}
18. c5 {[%clk 0:01:06.2]} 18... Qxh3 {[%clk 0:00:46.3]} 19. Ng5 {[%clk
0:01:03.1]} 19... Qg3 {[%clk 0:00:34.3]} 20. cxb6 {[%clk 0:00:58.5]} 20... h6
{[%clk 0:00:14.7]} 21. Bh5 {[%clk 0:00:45.2]} 21... Rxg5 {[%clk 0:00:06.4]} 22.
fxg5 {[%clk 0:00:43.5]} 22... Qxg5 {[%clk 0:00:07.3]} 23. Bf3 {[%clk 0:00:31.1]}
23... c6 {[%clk 0:00:07.6]} 24. e4 {[%clk 0:00:25.2]} 24... d6 {[%clk
0:00:06.3]} 25. Qc1 {[%clk 0:00:22.5]} 25... Qg3 {[%clk 0:00:06]} 26. Qe1 {[%clk
0:00:20.7]} 26... Qg5 {[%clk 0:00:03.5]} 27. Bxe5 {[%clk 0:00:17.4]} 27... Rxe5
{[%clk 0:00:02.3]} 28. Rd1 {[%clk 0:00:17.8]} 28... Bh3 {[%clk 0:00:02]} 29. Qd2
{[%clk 0:00:16.6]} 29... Qg3 {[%clk 0:00:01.9]} 30. Qf2 {[%clk 0:00:15.6]} 30...
Qg5 {[%clk 0:00:01.8]} 31. Qd2 {[%clk 0:00:13.5]} 31... Qg3 {[%clk 0:00:02]} 32.
Qxd6 {[%clk 0:00:13.7]} 32... Rf5 {[%clk 0:00:02.3]} 33. Qxg3 {[%clk 0:00:13.4]}
1-0

[Event "Early-Titled-Tuesday-Blitz-April-16-2024"]
[Site "Chess.com"]
[Date "2024.04.16"]
[Round "8"]
[White "AlessiaSanteramo"]
[Black "wild3000"]
[Result "1-0"]
[WhiteElo "2332"]
[BlackElo "2484"]
[TimeControl "180+1"]
[EndTime "9:31:31 PDT"]
[Termination "AlessiaSanteramo won by checkmate"]

1. e4 {[%clk 0:03:00.9]} 1... a6 {[%clk 0:02:29.7]} 2. d4 {[%clk 0:03:00.8]}
2... b5 {[%clk 0:02:29.9]} 3. Bd3 {[%clk 0:03:00.1]} 3... Bb7 {[%clk 0:02:30.3]}
4. Nf3 {[%clk 0:03:00.5]} 4... e6 {[%clk 0:02:30.7]} 5. O-O {[%clk 0:02:59.4]}
5... c5 {[%clk 0:02:31.1]} 6. c3 {[%clk 0:02:59.2]} 6... Nf6 {[%clk 0:02:30.7]}
7. Re1 {[%clk 0:02:54]} 7... d6 {[%clk 0:02:30.3]} 8. a4 {[%clk 0:02:45.5]} 8...
c4 {[%clk 0:02:29.9]} 9. Bc2 {[%clk 0:02:45.3]} 9... Be7 {[%clk 0:02:29.3]} 10.
e5 {[%clk 0:02:41.4]} 10... Nd5 {[%clk 0:02:29.2]} 11. Nbd2 {[%clk 0:02:35]}
11... Nd7 {[%clk 0:02:28.3]} 12. exd6 {[%clk 0:02:33.9]} 12... Bxd6 {[%clk
0:02:28.3]} 13. Ne4 {[%clk 0:02:34.6]} 13... Be7 {[%clk 0:02:28.6]} 14. Qe2
{[%clk 0:02:30.6]} 14... N7f6 {[%clk 0:02:27.8]} 15. Neg5 {[%clk 0:02:30.7]}
15... O-O {[%clk 0:02:25.2]} 16. Ne5 {[%clk 0:02:26.4]} 16... h6 {[%clk
0:02:17.9]} 17. Ngxf7 {[%clk 0:02:25.7]} 17... Rxf7 {[%clk 0:02:18.8]} 18. Nxf7
{[%clk 0:02:26.1]} 18... Kxf7 {[%clk 0:02:19.1]} 19. Qxe6+ {[%clk 0:02:26.4]}
19... Kf8 {[%clk 0:02:18.9]} 20. Bg6 {[%clk 0:02:25.8]} 20... Qe8 {[%clk
0:02:14.9]} 21. Bxe8 {[%clk 0:02:25.4]} 21... Rxe8 {[%clk 0:02:14.4]} 22. Bd2
{[%clk 0:01:56.5]} 22... Bc8 {[%clk 0:01:59.2]} 23. Qe2 {[%clk 0:01:36]} 23...
Bg4 {[%clk 0:01:52.6]} 24. f3 {[%clk 0:01:35.5]} 24... Bf5 {[%clk 0:01:52.7]}
25. Qf2 {[%clk 0:01:31.8]} 25... Rb8 {[%clk 0:01:46.2]} 26. axb5 {[%clk
0:01:30.7]} 26... axb5 {[%clk 0:01:47.1]} 27. Ra7 {[%clk 0:01:29.7]} 27... Bd6
{[%clk 0:01:45.9]} 28. Ra6 {[%clk 0:01:20.1]} 28... Bc7 {[%clk 0:01:37.4]} 29.
g4 {[%clk 0:01:16.8]} 29... Bd3 {[%clk 0:01:35]} 30. h4 {[%clk 0:01:12.4]} 30...
Kg8 {[%clk 0:01:29.3]} 31. Ree6 {[%clk 0:01:02.6]} 31... b4 {[%clk 0:01:03.2]}
32. cxb4 {[%clk 0:00:58.9]} 32... Nxb4 {[%clk 0:00:59.4]} 33. Bxb4 {[%clk
0:00:52.5]} 33... Rxb4 {[%clk 0:00:57.4]} 34. g5 {[%clk 0:00:49.7]} 34... hxg5
{[%clk 0:00:55.6]} 35. hxg5 {[%clk 0:00:49.9]} 35... Nh5 {[%clk 0:00:50.8]} 36.
g6 {[%clk 0:00:40.9]} 36... Rb8 {[%clk 0:00:28.2]} 37. Qh4 {[%clk 0:00:36.7]}
37... Bf4 {[%clk 0:00:20]} 38. Qxh5 {[%clk 0:00:31.5]} 38... Bh6 {[%clk
0:00:19.9]} 39. Qe5 {[%clk 0:00:27.3]} 39... Rf8 {[%clk 0:00:11.4]} 40. Re8
{[%clk 0:00:24]} 40... Bxg6 {[%clk 0:00:10.9]} 41. Rxg6 {[%clk 0:00:21.4]} 41...
Kh7 {[%clk 0:00:09.6]} 42. Rxf8 {[%clk 0:00:20.7]} 42... Kxg6 {[%clk 0:00:09.7]}
43. Qf5# {[%clk 0:00:20.6]} 1-0